bitfinex/quotes_BTCUSD_20230118
["timestamp","ask_amount","ask_price","bid_price","bid_amount"]
[1674082790576,0.00499932,20807.0,20806.0,2.18756145]
[1674082791093,0.00499932,20807.0,20806.0,2.51938045]
[1674082792627,0.00499932,20807.0,20806.0,2.18756145]
[1674082792880,0.00499932,20807.0,20806.0,2.52282345]
[1674082793401,0.00499932,20807.0,20806.0,2.75128444]
[1674082793654,0.00499932,20807.0,20806.0,2.13049299]
[1674082794699,0.00499932,20807.0,20806.0,2.41602244]
[1674082794951,0.00499932,20807.0,20806.0,2.13049299]
[1674082795550,0.21961932,20807.0,20806.0,2.13049299]
[1674082795820,0.54698232,20807.0,20806.0,1.78849949]
[1674082796095,0.54698232,20807.0,20806.0,1.50578707]
[1674082797405,0.54698232,20807.0,20806.0,1.39161207]
[1674082797667,0.54698232,20807.0,20806.0,1.38311207]
[1674082798155,0.54698232,20807.0,20806.0,1.00926]
[1674082799705,0.66188232,20807.0,20806.0,0.048]
[1674082800787,1.14248932,20807.0,20806.0,0.048]
[1674082801047,1.13888464,20807.0,20806.0,0.048]
[1674082801304,1.61104742,20807.0,20806.0,0.048]
[1674082801593,1.72664742,20807.0,20806.0,0.048]
[1674082802970,2.51974742,20807.0,20806.0,0.048]
[1674082803264,2.63485206,20807.0,20806.0,0.048]
[1674082804057,3.23485206,20807.0,20806.0,0.048]
[1674082804328,4.09917978,20807.0,20806.0,0.048]
[1674082804641,3.98407514,20807.0,20806.0,0.048]
[1674082804899,5.21987946,20807.0,20806.0,0.004]
[1674082805151,5.66729317,20807.0,20799.0,0.9304218]
[1674082805416,0.60935427,20806.0,20799.0,0.9304218]
[1674082805688,0.3466,20800.0,20799.0,0.4506478]
[1674082806204,0.63576497,20800.0,20799.0,0.4506478]
[1674082806206,0.63576497,20800.0,20798.0,0.480794]
[1674082806468,0.547258,20799.0,20797.0,0.48599885]
[1674082806736,0.440944,20798.0,20797.0,0.48599885]
[1674082806997,0.440944,20798.0,20797.0,0.78599885]
[1674082807256,0.2307,20798.0,20797.0,0.78599885]
[1674082807791,0.2307,20798.0,20797.0,0.34918085]
[1674082808056,0.2307,20798.0,20797.0,0.00518085]
[1674082808351,0.2347,20798.0,20797.0,0.34918085]
[1674082809163,0.2307,20798.0,20797.0,0.30518085]
[1674082809433,0.2337,20798.0,20797.0,0.04218085]
[1674082809699,0.322902,20798.0,20797.0,0.04218085]
[1674082810006,0.003,20798.0,20797.0,0.04218085]
[1674082810542,0.85823197,20798.0,20797.0,0.04218085]
[1674082810804,0.97343197,20798.0,20797.0,0.04218085]
[1674082811082,1.08863197,20798.0,20797.0,0.04218085]
[1674082811586,1.08863197,20798.0,20795.0,0.00562549]
[1674082811587,1.79062686,20798.0,20795.0,0.00562549]
[1674082811590,0.1,20797.0,20793.0,0.00562549]
[1674082811845,0.88792097,20796.0,20793.0,0.00562549]
[1674082812110,0.3454,20794.0,20793.0,0.00562549]
[1674082812381,1.029254,20794.0,20791.0,0.095]
[1674082812659,0.2302,20792.0,20791.0,0.095]
[1674082812954,0.448892,20792.0,20791.0,0.095]
[1674082814299,0.565892,20792.0,20791.0,0.095]
[1674082816182,0.448892,20792.0,20791.0,0.095]
[1674082816450,0.448892,20792.0,20791.0,0.096]
[1674082816451,0.532892,20792.0,20791.0,0.096]
[1674082816742,0.448892,20792.0,20791.0,0.095]
[1674082817000,0.532892,20792.0,20791.0,0.096]
[1674082823165,0.532892,20792.0,20791.0,0.1045]
[1674082827481,0.532892,20792.0,20791.0,0.1045]
[1674082827741,0.532892,20792.0,20791.0,0.096]
[1674082830588,0.532892,20792.0,20791.0,0.00042779]
[1674082830864,0.3142,20792.0,20791.0,0.00892779]
[1674082831395,0.084,20792.0,20791.0,0.00892779]
[1674082831658,0.084,20792.0,20791.0,1.60209379]
[1674082832217,0.084,20792.0,20791.0,1.601666]
[1674082832481,0.1146,20795.0,20791.0,1.601666]
[1674082832738,0.008,20792.0,20791.0,1.284454]
[1674082833258,0.008,20792.0,20791.0,1.590439]
[1674082833694,0.1146,20795.0,20792.0,0.358223]
[1674082833956,0.1146,20795.0,20793.0,0.62879]
[1674082834214,0.1146,20795.0,20793.0,0.3085]
[1674082835244,0.1146,20795.0,20793.0,0.4085]
[1674082835498,0.1226,20795.0,20793.0,0.3085]
[1674082835751,0.1146,20795.0,20793.0,0.3085]
[1674082836002,0.1176,20795.0,20793.0,0.3215]
[1674082837054,0.1176,20795.0,20793.0,0.802426]
[1674082837433,0.1176,20795.0,20793.0,1.283357]
[1674082841773,0.003,20795.0,20793.0,1.283357]
[1674082843743,0.0017244,20795.0,20793.0,1.283357]
[1674082847847,0.0017244,20795.0,20794.0,0.79621316]
[1674082848112,0.0017244,20795.0,20794.0,2.16652716]
[1674082848905,0.1156,20800.0,20794.0,2.18070216]
[1674082849127,0.1156,20800.0,20795.0,0.61889]
[1674082849378,0.1156,20800.0,20796.0,0.9617]
[1674082849628,0.1156,20800.0,20797.0,0.0085]
[1674082849900,0.1156,20800.0,20797.0,0.489335]
[1674082850130,0.1916,20800.0,20797.0,0.489335]
[1674082850382,0.1156,20800.0,20797.0,0.489335]
[1674082851136,0.1916,20800.0,20797.0,0.490335]
[1674082851893,0.1156,20800.0,20797.0,0.489335]
[1674082852145,0.1766,20800.0,20797.0,0.491335]
[1674082852399,0.346971,20799.0,20797.0,0.489335]
[1674082852803,0.2526,20800.0,20797.0,0.490335]
[1674082852995,0.2156,20800.0,20797.0,0.489335]
[1674082853248,0.061,20800.0,20797.0,0.491335]
[1674082853494,1.2795971,20801.0,20797.0,0.489335]
[1674082853781,0.061,20799.0,20797.0,0.491335]
[1674082854786,1.2795971,20801.0,20797.0,0.489335]
[1674082855050,0.061,20800.0,20797.0,0.491335]
[1674082855304,0.0134051,20801.0,20798.0,0.65883179]
[1674082855588,0.061,20799.0,20798.0,0.65883179]
[1674082855848,0.0134051,20801.0,20799.0,0.0085]
[1674082856110,0.0744051,20801.0,20800.0,1.751082]
[1674082856366,0.0744051,20801.0,20800.0,2.059582]
[1674082856854,0.0824051,20801.0,20800.0,2.059582]
[1674082856855,0.0134051,20801.0,20800.0,2.059582]
[1674082857124,0.0204051,20801.0,20800.0,2.059582]
[1674082857963,0.0134051,20801.0,20800.0,2.059582]
[1674082858200,0.0204051,20801.0,20800.0,2.059582]
[1674082858504,0.0204051,20801.0,20800.0,2.45232136]
[1674082858785,0.0274051,20801.0,20800.0,2.47432136]
[1674082859553,0.0134051,20801.0,20800.0,2.45232136]
[1674082859829,0.0204051,20801.0,20800.0,2.47332136]
[1674082865641,0.0204051,20801.0,20800.0,2.70432136]
[1674082865887,0.00228286,20801.0,20800.0,2.73887951]
[1674082866424,0.00228286,20801.0,20800.0,2.34614015]
[1674082866699,0.00228286,20801.0,20800.0,2.81677731]
[1674082866972,0.00228286,20801.0,20800.0,2.78221916]
[1674082867231,0.00228286,20801.0,20800.0,3.19438369]
[1674082867490,0.00228286,20801.0,20800.0,3.34311684]
[1674082867765,0.01255448,20804.0,20800.0,4.34750515]
[1674082868036,0.01255448,20804.0,20803.0,0.1155]
[1674082868331,0.01255448,20804.0,20803.0,2.177626]
[1674082868807,0.01255448,20804.0,20803.0,2.186126]
[1674082869075,0.01255448,20804.0,20803.0,3.67053877]
[1674082869333,0.01255448,20804.0,20803.0,3.70509692]
[1674082869905,0.01255448,20804.0,20803.0,3.80509692]
[1674082871217,0.01255448,20804.0,20803.0,3.50509692]
[1674082871752,0.01255448,20804.0,20803.0,3.59709692]
[1674082872272,0.01255448,20804.0,20803.0,3.48159692]
[1674082872816,0.01255448,20804.0,20803.0,3.44703877]
[1674082873065,0.01255448,20804.0,20803.0,2.55573708]
[1674082873614,0.01255448,20804.0,20803.0,2.70569523]
[1674082873936,0.01255448,20804.0,20803.0,2.51369523]
[1674082874199,0.37210477,20803.0,20802.0,0.4852574]
[1674082874453,0.37210477,20803.0,20802.0,3.19681909]
[1674082874706,0.01565242,20810.0,20802.0,3.19681909]
[1674082874707,0.66405028,20813.0,20802.0,3.23137724]
[1674082874967,0.008,20804.0,20803.0,0.920522]
[1674082875235,0.008,20804.0,20803.0,2.20482]
[1674082875487,0.008,20804.0,20803.0,2.71657984]
[1674082875747,0.02012355,20810.0,20803.0,3.03835065]
[1674082876006,0.30982097,20812.0,20808.0,0.1155]
[1674082876007,0.19432097,20812.0,20808.0,0.1155]
[1674082876264,0.66600375,20813.0,20809.0,0.832665]
[1674082876619,0.66600375,20813.0,20810.0,0.3]
[1674082877032,0.30565326,20813.0,20811.0,0.1085]
[1674082877296,0.1151,20813.0,20811.0,0.1085]
[1674082877567,0.42575,20812.0,20811.0,0.0085]
[1674082877817,0.1,20812.0,20811.0,0.0085]
[1674082878071,0.1151,20813.0,20811.0,0.0085]
[1674082878346,0.1151,20813.0,20811.0,0.3155]
[1674082878597,0.1155,20813.0,20811.0,0.6155]
[1674082878896,0.1155,20813.0,20811.0,0.01835]
[1674082879905,0.007,20812.0,20811.0,0.02535]
[1674082880190,0.1155,20813.0,20811.0,0.01835]
[1674082880406,0.1225,20813.0,20811.0,0.02535]
[1674082881762,0.007,20813.0,20812.0,0.0085]
[1674082882794,0.007,20813.0,20811.0,0.42157875]
[1674082883604,0.00502193,20814.0,20811.0,0.41457875]
[1674082883858,0.006,20813.0,20812.0,0.3]
[1674082885447,0.006,20814.0,20812.0,0.3]
[1674082885666,0.006,20813.0,20812.0,0.307]
[1674082886501,0.58168893,20816.0,20812.0,0.3]
[1674082887035,0.006,20813.0,20812.0,0.307]
[1674082887283,0.0024,20813.0,20812.0,0.79599]
[1674082887565,0.58168893,20816.0,20812.0,0.78899]
[1674082887818,0.58468893,20816.0,20812.0,0.79699]
[1674082888080,0.58168893,20816.0,20812.0,0.78899]
[1674082888368,0.003,20813.0,20812.0,0.78899]
[1674082888596,0.333328,20813.0,20812.0,0.78899]
[1674082888847,0.1,20815.0,20812.0,0.79699]
[1674082889108,0.7760099,20816.0,20812.0,0.78899]
[1674082889352,0.58168893,20816.0,20812.0,0.78899]
[1674082889605,0.320391,20815.0,20812.0,0.78899]
[1674082889861,0.58168893,20816.0,20812.0,0.78899]
[1674082890115,0.003,20813.0,20812.0,0.79699]
[1674082890368,0.58168893,20816.0,20812.0,0.78899]
[1674082890620,0.58468893,20816.0,20812.0,0.79699]
[1674082890916,0.332706,20815.0,20812.0,0.79699]
[1674082891168,0.58468893,20816.0,20812.0,0.79699]
[1674082891427,0.326983,20815.0,20812.0,0.79699]
[1674082891683,0.58468893,20816.0,20812.0,0.79699]
[1674082891936,0.58168893,20816.0,20812.0,0.48899]
[1674082892192,0.32948,20815.0,20812.0,0.49699]
[1674082892448,0.328666,20814.0,20812.0,0.49699]
[1674082892718,0.334605,20813.0,20812.0,0.49699]
[1674082892974,0.103,20815.0,20812.0,0.49699]
[1674082893247,0.58168893,20816.0,20812.0,0.48899]
[1674082893472,0.58168893,20816.0,20812.0,0.49699]
[1674082893473,0.58468893,20816.0,20812.0,0.49699]
[1674082893725,0.304113,20815.0,20812.0,0.48899]
[1674082893985,0.297026,20814.0,20812.0,0.48899]
[1674082894255,0.328962,20813.0,20812.0,0.48899]
[1674082894548,0.1,20815.0,20812.0,0.48899]
[1674082894824,0.1155,20813.0,20812.0,0.49699]
[1674082895061,0.444782,20813.0,20812.0,0.48899]
[1674082895855,0.444782,20813.0,20812.0,0.48049]
[1674082896375,0.447782,20813.0,20812.0,0.48849]
[1674082896885,0.447782,20813.0,20812.0,0.008]
[1674082897663,0.422782,20813.0,20812.0,0.008]
[1674082897921,0.332282,20813.0,20812.0,0.008]
[1674082902162,0.332282,20813.0,20812.0,0.488492]
[1674082902725,0.332282,20813.0,20812.0,0.788492]
[1674082902989,0.003,20813.0,20812.0,0.788492]
[1674082904582,0.003,20813.0,20812.0,0.488492]
[1674082904815,0.323334,20813.0,20812.0,0.488492]
[1674082905635,0.320334,20813.0,20812.0,0.480492]
[1674082905899,0.323334,20813.0,20812.0,0.487492]
[1674082906434,0.003,20813.0,20812.0,0.487492]
[1674082906973,0.00490974,20814.0,20812.0,0.780492]
[1674082907225,0.00490974,20814.0,20812.0,0.487492]
[1674082907226,0.003,20813.0,20812.0,0.487492]
[1674082907479,0.317786,20813.0,20812.0,0.787492]
[1674082907746,0.003,20813.0,20812.0,0.787492]
[1674082908217,0.67472297,20816.0,20812.0,0.780492]
[1674082908483,0.003,20814.0,20813.0,0.3]
[1674082909002,0.336405,20814.0,20813.0,0.3]
[1674082909320,0.60044986,20816.0,20813.0,0.3]
[1674082909576,0.332314,20815.0,20813.0,0.3]
[1674082909834,0.003,20814.0,20813.0,0.307]
[1674082910099,0.334024,20814.0,20813.0,0.3]
[1674082910350,0.334024,20814.0,20813.0,0.007]
[1674082910351,0.214228,20814.0,20813.0,0.007]
[1674082910641,0.214228,20814.0,20812.0,0.480492]
[1674082910899,0.003,20814.0,20812.0,0.480492]
[1674082911172,0.003,20814.0,20813.0,0.3]
[1674082911683,0.003,20814.0,20812.0,0.580492]
[1674082911684,0.00280472,20814.0,20812.0,0.580492]
[1674082911979,0.00280472,20814.0,20812.0,0.480492]
[1674082912237,0.002,20814.0,20812.0,0.587492]
[1674082912512,0.002,20814.0,20812.0,0.487492]
[1674082912797,0.00180472,20814.0,20813.0,0.3]
[1674082913818,0.00160944,20814.0,20813.0,0.3]
[1674082914069,0.60044986,20816.0,20813.0,0.3]
[1674082914324,0.002,20814.0,20813.0,0.307]
[1674082914586,0.323146,20814.0,20813.0,0.307]
[1674082914873,0.00180472,20814.0,20813.0,0.307]
[1674082916038,0.60044986,20816.0,20813.0,0.307]
[1674082916180,0.60244986,20816.0,20813.0,0.307]
[1674082916443,0.323623,20815.0,20812.0,0.480492]
[1674082916710,0.318694,20814.0,20813.0,0.407]
[1674082917209,1.356084,20814.0,20813.0,0.1]
[1674082917482,1.1544843,20814.0,20813.0,0.107]
[1674082917747,1.46994154,20814.0,20813.0,0.1]
[1674082918010,1.47194154,20814.0,20813.0,0.107]
[1674082918266,1.46994154,20814.0,20813.0,0.1]
[1674082918809,1.64238769,20814.0,20813.0,0.1]
[1674082919098,1.64736044,20814.0,20813.0,0.1]
[1674082919351,1.47471901,20814.0,20813.0,0.1]
[1674082919602,1.47671901,20814.0,20813.0,0.107]
[1674082919883,2.68618845,20814.0,20813.0,0.1]
[1674082920115,2.80349319,20814.0,20813.0,0.108]
[1674082920373,3.30633392,20814.0,20813.0,0.108]
[1674082920654,3.26059228,20814.0,20813.0,0.108]
[1674082920880,3.26521437,20814.0,20813.0,0.108]
[1674082922932,3.55310834,20814.0,20813.0,0.108]
[1674082923190,3.500627,20814.0,20813.0,0.108]
[1674082923961,4.13360288,20814.0,20813.0,0.108]
[1674082924241,3.78808334,20814.0,20813.0,0.108]
[1674082924510,3.78608334,20814.0,20813.0,0.1]
[1674082924725,3.87008334,20814.0,20813.0,0.101]
[1674082925020,3.58759912,20814.0,20813.0,0.101]
[1674082925842,0.05628407,20812.0,20809.0,0.1]
[1674082926093,0.0785,20810.0,20809.0,0.1]
[1674082926393,1.36825,20810.0,20809.0,0.1]
[1674082926614,2.76059066,20810.0,20809.0,0.1]
[1674082926890,2.93251599,20810.0,20809.0,0.1]
[1674082927402,3.02346862,20810.0,20809.0,0.1]
[1674082927700,4.03418617,20810.0,20809.0,0.1]
[1674082927937,3.78613102,20810.0,20809.0,0.1]
[1674082928189,2.59443398,20810.0,20809.0,0.1]
[1674082928700,4.3711883,20810.0,20809.0,0.040625]
[1674082928953,5.07061896,20810.0,20809.0,0.040625]
[1674082929208,5.14076597,20810.0,20809.0,0.040625]
[1674082929470,5.37744595,20810.0,20809.0,0.040625]
[1674082929742,4.85343673,20810.0,20809.0,0.040625]
[1674082929997,5.14076622,20810.0,20809.0,0.040625]
[1674082930262,4.93675263,20810.0,20809.0,0.040625]
[1674082930526,5.23675263,20810.0,20809.0,0.040625]
[1674082930792,5.23176622,20810.0,20809.0,0.040625]
[1674082931055,5.17338295,20810.0,20809.0,0.040625]
[1674082931312,3.02705671,20810.0,20809.0,0.040625]
[1674082931685,2.78736555,20810.0,20809.0,0.040625]
[1674082932332,2.90220396,20810.0,20809.0,0.040625]
[1674082932629,2.86157896,20810.0,20804.0,0.02352857]
[1674082932884,0.0777,20807.0,20804.0,0.02352857]
[1674082933137,1.296229,20806.0,20804.0,0.02352857]
[1674082933391,0.429857,20805.0,20804.0,0.02352857]
[1674082933918,0.81051,20805.0,20804.0,0.02352857]
[1674082934174,1.291163,20805.0,20804.0,0.02352857]
[1674082935753,1.382163,20805.0,20804.0,0.02352857]
[1674082936507,1.38699583,20805.0,20804.0,0.02352857]
[1674082938618,1.38699583,20805.0,20804.0,0.00517857]
[1674082939651,1.60199583,20805.0,20804.0,0.00517857]
[1674082940432,1.50199583,20805.0,20804.0,0.00517857]
[1674082940701,1.60199583,20805.0,20804.0,0.00517857]
[1674082941239,1.51099583,20805.0,20804.0,0.00517857]
[1674082941518,1.60199583,20805.0,20804.0,0.00517857]
[1674082941756,1.51099583,20805.0,20804.0,0.00517857]
[1674082942072,1.60199583,20805.0,20804.0,0.00517857]
[1674082942258,1.51099583,20805.0,20804.0,0.00517857]
[1674082942511,1.60199583,20805.0,20804.0,0.00517857]
[1674082945847,2.07919752,20805.0,20804.0,0.00517857]
[1674082946262,0.51307076,20804.0,20803.0,0.00248474]
[1674082946266,0.5082,20804.0,20803.0,0.00248474]
[1674082946528,3.40886869,20804.0,20803.0,0.00248474]
[1674082946838,3.70886869,20804.0,20803.0,0.00248474]
[1674082947352,3.41386921,20804.0,20803.0,0.00248474]
[1674082948147,3.50486921,20804.0,20803.0,0.00248474]
[1674082948458,2.52716869,20804.0,20803.0,0.00248474]
[1674082948711,2.61816869,20804.0,20803.0,0.00248474]
[1674082948972,2.52716869,20804.0,20803.0,0.00248474]
[1674082949227,2.91816869,20804.0,20803.0,0.00248474]
[1674082949481,2.92314767,20804.0,20803.0,0.00248474]
[1674082949741,2.83214767,20804.0,20803.0,0.00248474]
[1674082950001,2.92314767,20804.0,20803.0,0.00248474]
[1674082950279,3.40077088,20804.0,20803.0,0.00248474]
[1674082950798,3.5155383,20804.0,20803.0,0.00248474]
[1674082951087,3.40077088,20804.0,20803.0,0.00248474]
[1674082951596,3.30977088,20804.0,20803.0,0.00248474]
[1674082952140,3.5155383,20804.0,20803.0,0.00248474]
[1674082952422,3.70571555,20804.0,20803.0,0.00248474]
[1674082952952,0.00086509,20802.0,20801.0,0.00525888]
[1674082953201,2.50259378,20802.0,20801.0,0.00525888]
[1674082953455,0.5082,20800.0,20797.0,0.01835]
[1674082953723,0.6652,20798.0,20797.0,0.01835]
[1674082953974,2.65964366,20798.0,20797.0,0.01835]
[1674082954235,2.76532269,20798.0,20797.0,0.01835]
[1674082955302,2.46532269,20798.0,20797.0,0.01835]
[1674082955844,2.56120628,20798.0,20797.0,0.01835]
[1674082956102,2.78370628,20798.0,20797.0,0.01835]
[1674082958512,3.08370628,20798.0,20797.0,0.01835]
[1674082959044,2.78370628,20798.0,20797.0,0.01835]
[1674082959564,2.03507628,20798.0,20797.0,0.01835]
[1674082960102,1.85647628,20798.0,20797.0,0.01835]
[1674082965746,1.85647628,20798.0,20795.0,0.00578538]
[1674082966007,0.335226,20797.0,20795.0,0.00578538]
[1674082966282,0.295205,20796.0,20795.0,0.00578538]
[1674082966541,1.2618754,20796.0,20795.0,0.02413538]
[1674082968095,1.3528754,20796.0,20795.0,0.02413538]
[1674082969183,1.2618754,20796.0,20795.0,0.02413538]
[1674082969425,1.3528754,20796.0,20795.0,0.02413538]
[1674082969667,1.2618754,20796.0,20795.0,0.02413538]
[1674082969911,0.571861,20796.0,20795.0,0.02413538]
[1674082970153,0.091,20796.0,20795.0,0.81573856]
[1674082970398,0.091,20796.0,20795.0,1.19897256]
[1674082970652,0.480851,20797.0,20795.0,1.19897256]
[1674082970895,0.083,20796.0,20795.0,0.56461456]
[1674082971148,0.480851,20797.0,20795.0,0.56361456]
[1674082971396,0.082,20796.0,20795.0,0.56461456]
[1674082971648,0.480851,20797.0,20795.0,1.20557256]
[1674082971884,0.562851,20797.0,20796.0,0.304024]
[1674082972379,0.562851,20797.0,20795.0,0.56461456]
[1674082972630,0.480851,20797.0,20796.0,0.1]
[1674082972892,0.083,20797.0,20796.0,0.101]
[1674082973130,0.083,20797.0,20796.0,0.001]
[1674082973393,0.083,20797.0,20796.0,0.340342]
[1674082973635,0.083,20797.0,20796.0,0.001]
[1674082973874,0.48083,20798.0,20795.0,0.56361456]
[1674082974113,0.082,20797.0,20795.0,0.56461456]
[1674082974348,0.48083,20798.0,20795.0,0.56361456]
[1674082974590,0.083,20797.0,20796.0,0.001]
[1674082974932,0.083,20797.0,20795.0,0.56361456]
[1674082975180,0.083,20797.0,20795.0,0.56461456]
[1674082975417,0.48083,20798.0,20795.0,0.56361456]
[1674082975652,0.083,20797.0,20796.0,0.001]
[1674082976381,0.392604,20797.0,20796.0,0.001]
[1674082976615,0.392604,20797.0,20795.0,0.10273538]
[1674082976616,0.806335,20797.0,20795.0,0.10273538]
[1674082976857,0.868564,20797.0,20795.0,0.02513538]
[1674082977114,0.329272,20796.0,20795.0,0.02513538]
[1674082977361,0.480838,20797.0,20795.0,0.02413538]
[1674082977599,0.563838,20797.0,20796.0,0.001]
[1674082977888,8.789e-05,20796.0,20795.0,0.02413538]
[1674082978116,8.789e-05,20796.0,20795.0,0.02513538]
[1674082978890,8.789e-05,20796.0,20795.0,0.02413538]
[1674082980136,8.789e-05,20796.0,20795.0,0.00913538]
[1674082980380,0.08308789,20796.0,20795.0,0.01013538]
[1674082980639,0.38216789,20796.0,20795.0,0.01013538]
[1674082981620,0.08308789,20796.0,20795.0,0.01013538]
[1674082993197,0.08308789,20796.0,20795.0,0.31013538]
[1674082993571,0.08308789,20796.0,20795.0,0.01013538]
[1674082993719,0.08308789,20796.0,20795.0,0.41013538]
[1674082993984,0.08308789,20796.0,20795.0,0.11013538]
[1674082994234,0.08308789,20796.0,20795.0,0.01013538]
[1674082994483,1.31773086,20796.0,20795.0,0.01013538]
[1674082994737,1.45387985,20796.0,20795.0,0.01013538]
[1674082995751,2.58819057,20796.0,20795.0,0.01013538]
[1674082996528,2.58819465,20796.0,20795.0,0.01013538]
[1674082996777,2.5881932,20796.0,20795.0,0.01013538]
[1674082997032,2.7348613,20796.0,20795.0,0.00913538]
[1674082997309,1.74832262,20796.0,20795.0,0.00913538]
[1674082997547,2.50519478,20796.0,20795.0,0.00913538]
[1674082997824,2.59519478,20796.0,20795.0,0.00913538]
[1674082998060,1.7483226,20796.0,20795.0,0.00913538]
[1674082999373,1.57607535,20796.0,20795.0,0.00913538]
[1674083002984,1.46077534,20796.0,20795.0,0.00913538]
[1674083003231,1.67597084,20796.0,20795.0,0.00913538]
[1674083003482,1.84821809,20796.0,20795.0,0.00913538]
[1674083003966,2.65562705,20796.0,20795.0,0.00913538]
[1674083004224,4.52374082,20796.0,20795.0,0.00913538]
[1674083004486,3.66386545,20796.0,20795.0,0.00913538]
[1674083004734,3.96386545,20796.0,20795.0,0.00913538]
[1674083005492,3.8940969,20796.0,20795.0,0.00913538]
[1674083006474,3.89409717,20796.0,20795.0,0.00913538]
[1674083009020,4.05979831,20796.0,20795.0,0.00913538]
[1674083009308,4.05964073,20796.0,20795.0,0.00913538]
[1674083009539,4.35964073,20796.0,20795.0,0.00913538]
[1674083010275,4.35964073,20796.0,20794.0,0.00578538]
[1674083010526,1.28905074,20795.0,20794.0,0.00578538]
[1674083010784,3.55344911,20795.0,20794.0,0.00578538]
[1674083011036,3.85344911,20795.0,20794.0,0.00578538]
[1674083011288,4.30289934,20795.0,20794.0,0.00578538]
[1674083011541,4.4852816,20795.0,20794.0,0.00578538]
[1674083011799,0.10176497,20793.0,20792.0,0.00913538]
[1674083012061,2.52742562,20793.0,20792.0,0.00913538]
[1674083012309,2.62742562,20793.0,20792.0,0.00913538]
[1674083012626,2.52742562,20793.0,20792.0,0.00913538]
[1674083012817,2.99995256,20793.0,20792.0,0.00913538]
[1674083013077,2.52742562,20793.0,20792.0,0.00913538]
[1674083013822,2.61742562,20793.0,20792.0,0.00913538]
[1674083014571,2.78995256,20793.0,20792.0,0.00913538]
[1674083015337,2.61742562,20793.0,20792.0,0.00913538]
[1674083017307,2.50240766,20793.0,20792.0,0.00913538]
[1674083017787,2.66074747,20793.0,20792.0,0.00913538]
[1674083018027,2.50240766,20793.0,20792.0,0.00913538]
[1674083018292,2.58040766,20793.0,20792.0,0.00913538]
[1674083018538,2.50180766,20793.0,20792.0,0.00913538]
[1674083026858,3.09775662,20793.0,20792.0,0.00913538]
[1674083027924,3.39775662,20793.0,20792.0,0.00913538]
[1674083028171,3.57028356,20793.0,20792.0,0.00913538]
[1674083028452,3.09775662,20793.0,20792.0,0.00913538]
[1674083028683,3.6646357,20793.0,20792.0,0.00913538]
[1674083029226,3.60798356,20793.0,20792.0,0.00913538]
[1674083029747,3.30798356,20793.0,20792.0,0.00913538]
[1674083030253,3.60798356,20793.0,20792.0,0.00913538]
[1674083030502,3.30798356,20793.0,20792.0,0.00913538]
[1674083030762,3.60798356,20793.0,20792.0,0.00913538]
[1674083031030,3.30798356,20793.0,20792.0,0.00913538]
[1674083031271,4.38525448,20793.0,20792.0,0.00913538]
[1674083031913,3.1929656,20793.0,20792.0,0.00913538]
[1674083032353,3.30804002,20793.0,20792.0,0.00913538]
[1674083032609,3.30804002,20793.0,20792.0,0.00905047]
[1674083033114,3.30804003,20793.0,20792.0,0.00905047]
[1674083033391,4.21271535,20793.0,20792.0,0.00905047]
[1674083033659,4.87491256,20793.0,20792.0,0.00905047]
[1674083035295,4.64487664,20793.0,20792.0,0.00905047]
[1674083035541,4.8752576,20793.0,20792.0,0.00905047]
[1674083035815,4.64487664,20793.0,20792.0,0.00905047]
[1674083036062,4.76057664,20793.0,20792.0,0.00905047]
[1674083036839,4.99095761,20793.0,20792.0,0.00905047]
[1674083037104,4.76057664,20793.0,20792.0,0.00905047]
[1674083037874,5.09610898,20793.0,20792.0,0.00905047]
[1674083038425,4.76057664,20793.0,20792.0,0.00905047]
[1674083039407,4.77324715,20793.0,20792.0,0.00905047]
[1674083039764,4.47324715,20793.0,20792.0,0.00905047]
[1674083039916,4.76131886,20793.0,20792.0,0.00905047]
[1674083040462,4.99176977,20793.0,20792.0,0.00905047]
[1674083041221,4.76131886,20793.0,20792.0,0.00905047]
[1674083042264,4.89282584,20793.0,20792.0,0.00905047]
[1674083042518,4.1713779,20793.0,20792.0,0.00905047]
[1674083043035,4.17138529,20793.0,20792.0,0.00905047]
[1674083043290,3.99848641,20793.0,20792.0,0.00905047]
[1674083043568,4.17145263,20793.0,20792.0,0.00905047]
[1674083043814,4.66132962,20793.0,20792.0,0.00905047]
[1674083044886,4.66143895,20793.0,20792.0,0.00905047]
[1674083045335,4.43080264,20793.0,20792.0,0.00905047]
[1674083046102,4.54560264,20793.0,20792.0,0.00905047]
[1674083046621,4.25753093,20793.0,20792.0,0.00905047]
[1674083048634,4.25743773,20793.0,20792.0,0.00905047]
[1674083051467,5.01795727,20793.0,20791.0,0.00709294]
[1674083051472,5.01795727,20793.0,20790.0,0.00560857]
[1674083051473,0.00623872,20791.0,20790.0,0.00560857]
[1674083051726,2.70735348,20791.0,20790.0,0.00560857]
[1674083051988,4.70217078,20791.0,20790.0,0.00560857]
[1674083052254,5.07752334,20791.0,20790.0,0.00560857]
[1674083052524,4.58647078,20791.0,20790.0,0.00560857]
[1674083053617,4.67647078,20791.0,20790.0,0.00560857]
[1674083054686,5.01134075,20791.0,20790.0,0.00560857]
[1674083056010,5.12704075,20791.0,20790.0,0.00560857]
[1674083056523,5.12573204,20791.0,20790.0,0.00560857]
[1674083057061,5.63393204,20791.0,20790.0,0.00560857]
[1674083057318,6.11490904,20791.0,20790.0,0.00560857]
[1674083058159,6.10997903,20791.0,20790.0,0.00560857]
[1674083058427,6.54123385,20791.0,20790.0,0.00560857]
[1674083059239,6.94127611,20791.0,20790.0,0.00560857]
[1674083059490,0.09994751,20789.0,20788.0,0.0058979]
[1674083059760,3.2679252,20789.0,20788.0,0.0058979]
[1674083060032,4.60493747,20789.0,20788.0,0.0058979]
[1674083060831,5.75109229,20789.0,20788.0,0.0058979]
[1674083061376,5.75607064,20789.0,20788.0,0.0058979]
[1674083061644,6.19246911,20789.0,20788.0,0.0058979]
[1674083061911,6.09649076,20789.0,20788.0,0.0058979]
[1674083062185,6.18749076,20789.0,20788.0,0.0058979]
[1674083062714,5.75623594,20789.0,20788.0,0.0058979]
[1674083062971,6.18749076,20789.0,20786.0,0.01587771]
[1674083063293,0.52889544,20787.0,20786.0,0.01587771]
[1674083063561,3.35410347,20787.0,20786.0,0.01587771]